bitfinex/quotes_SOLUSD_20251002
["timestamp","ask_amount","ask_price","bid_price","bid_amount"]
[1759370672235,0.68,222.35,222.28,32.48]
[1759370672536,4.49721172,222.36,222.28,32.48]
[1759370672720,4.49721172,222.36,222.31,20.8]
[1759370672924,4.49698186,222.38,222.32,32.52]
[1759370673119,4.49698186,222.38,222.3,20.8]
[1759370673120,7.27531311,222.35,222.31,20.8]
[1759370673320,12.45229497,222.38,222.31,20.8]
[1759370673536,5.17698186,222.38,222.32,32.56]
[1759370674034,4.67698186,222.38,222.32,32.56]
[1759370675133,11.95229497,222.38,222.32,32.56]
[1759370675630,0.1,222.4,222.33,0.47]
[1759370675835,0.1,222.4,222.35,20.8]
[1759370676017,0.1,222.4,222.36,32.54]
[1759370676018,5.27641511,222.4,222.36,32.54]
[1759370676213,0.96432314,222.39,222.36,32.54]
[1759370676516,0.1,222.4,222.36,32.54]
[1759370677218,0.1,222.4,222.37,0.47]
[1759370677420,0.78,222.4,222.36,32.54]
[1759370677730,4.59645739,222.4,222.36,32.54]
[1759370678043,8.23963625,222.39,222.32,32.54]
[1759370678338,15.83746458,222.4,222.32,32.54]
[1759370678339,0.28432314,222.35,222.32,32.54]
[1759370678544,0.96432314,222.34,222.3,32.58]
[1759370679121,0.68,222.34,222.3,32.58]
[1759370679450,0.68,222.33,222.3,32.58]
[1759370679947,0.82216157,222.32,222.27,32.56]
[1759370680130,0.68,222.31,222.27,32.56]
[1759370680825,0.14216157,222.32,222.27,0.47]
[1759370681143,0.68,222.31,222.26,32.56]
[1759370681731,4.64024971,222.32,222.26,32.56]
[1759370681938,20.94216157,222.32,222.26,32.56]
[1759370682125,26.12019434,222.32,222.26,32.56]
[1759370682742,33.39550745,222.32,222.26,32.56]
[1759370683044,44.64055962,222.32,222.26,32.56]
[1759370683234,0.14216157,222.31,222.26,32.56]
[1759370683557,4.49842555,222.3,222.26,32.56]
[1759370684136,4.49842555,222.3,222.21,10.87647521]
[1759370684137,0.82216157,222.29,222.21,0.47]
[1759370684349,0.82216157,222.29,222.24,32.54]
[1759370685353,5.1788303,222.28,222.24,32.54]
[1759370685538,12.45414341,222.28,222.24,32.54]
[1759370685952,0.14216157,222.27,222.24,32.54]
[1759370686148,8.09747468,222.27,222.2,32.52]
[1759370686331,7.41747468,222.25,222.2,32.52]
[1759370686536,8.09747468,222.25,222.2,32.52]
[1759370686843,0.82216157,222.24,222.2,32.52]
[1759370687238,0.28432314,222.22,222.2,32.52]
[1759370687438,0.96432314,222.22,222.2,32.52]
[1759370687959,7.95531311,222.21,222.16,32.52]
[1759370688142,0.14216157,222.19,222.16,32.52]
[1759370688333,0.82216157,222.19,222.12,0.47]
[1759370688532,0.82216157,222.19,222.12,33.03]
[1759370689151,0.14216157,222.17,222.12,33.03]
[1759370689849,4.64220657,222.22,222.13,0.47]
[1759370690052,12.59751968,222.22,222.13,0.47]
[1759370690237,0.14216157,222.21,222.13,0.47]
[1759370690442,0.82216157,222.21,222.12,32.56]
[1759370690643,0.68,222.2,222.12,32.56]
[1759370691261,0.28432314,222.18,222.12,32.56]
[1759370692133,0.96432314,222.18,222.12,32.56]
[1759370692375,0.68,222.17,222.12,32.56]
[1759370693447,0.14216157,222.15,222.12,32.56]
[1759370693868,0.28432314,222.15,222.12,32.56]
[1759370694243,4.50102484,222.18,222.12,33.03]
[1759370694451,0.28432314,222.17,222.12,32.56]
[1759370694651,0.28432314,222.17,222.12,33.03]
[1759370695056,0.28432314,222.17,222.12,32.56]
[1759370696064,4.64324266,222.17,222.12,33.03]
[1759370696363,4.64324266,222.17,222.12,32.56]
[1759370696572,0.69,222.16,222.12,32.56]
[1759370696863,4.64324266,222.17,222.12,32.56]
[1759370697438,0.14216157,222.16,222.12,32.56]
[1759370697762,4.50146297,222.15,222.12,32.56]
[1759370698074,5.19146297,222.15,222.12,32.56]
[1759370698440,4.50146297,222.15,222.12,32.56]
[1759370698648,0.14216157,222.16,222.12,32.56]
[1759370699541,4.50105774,222.17,222.12,32.56]
[1759370699741,4.50146297,222.15,222.12,32.56]
[1759370700058,0.14216157,222.16,222.12,32.56]
[1759370700377,0.69,222.15,222.12,32.56]
[1759370700754,15.89660659,222.16,222.12,32.56]
[1759370700941,0.14216157,222.15,222.12,32.56]
[1759370701649,0.14216157,222.15,222.07,0.27898208]
[1759370701650,0.69,222.14,222.07,0.27898208]
[1759370701959,0.28432314,222.1,222.07,0.27898208]
[1759370702161,4.92183675,222.1,222.07,0.27898208]
[1759370702373,0.69,222.09,222.07,0.27898208]
[1759370702546,0.97432314,222.1,222.07,0.27898208]
[1759370703365,0.28432314,222.1,222.07,0.27898208]
[1759370703955,5.4769957,222.1,222.07,0.27898208]
[1759370704465,4.63751361,222.08,222.07,0.27898208]
[1759370704959,5.32751361,222.08,222.07,0.27898208]
[1759370706050,9.83039545,222.08,222.07,0.27898208]
[1759370706250,7.07833136,222.08,222.07,0.27898208]
[1759370706676,5.19288184,222.08,222.07,0.27898208]
[1759370706864,7.07833136,222.08,222.07,0.27898208]
[1759370707690,7.22049293,222.08,222.07,0.27898208]
[1759370708753,7.3626545,222.08,222.07,0.27898208]
[1759370708948,6.6726545,222.08,222.07,0.27898208]
[1759370709357,7.3626545,222.08,222.07,0.27898208]
[1759370711453,18.23912971,222.08,222.07,0.27898208]
[1759370712157,7.3626545,222.08,222.07,0.27898208]
[1759370713057,16.35368019,222.08,222.07,0.27898208]
[1759370713265,18.23912971,222.08,222.07,0.27898208]
[1759370714350,4.50288184,222.08,222.07,0.27898208]
[1759370714549,1.88544952,222.08,222.07,0.27898208]
[1759370714975,2.57544952,222.08,222.07,0.27898208]
[1759370715279,13.45192473,222.08,222.07,0.27898208]
[1759370715653,13.5940863,222.08,222.07,0.27898208]
[1759370716570,18.09696814,222.08,222.07,0.27898208]
[1759370717853,18.23912971,222.08,222.07,0.27898208]
[1759370718352,0.28432314,222.03,222.01,1e-08]
[1759370718570,0.28432314,222.03,221.92,0.2]
[1759370718571,0.14216157,221.94,221.92,0.2]
[1759370718770,0.28432314,221.94,221.92,0.2]
[1759370718972,2.16977266,221.94,221.92,0.2]
[1759370719370,1.88544952,221.93,221.92,0.2]
[1759370719862,2.16977266,221.94,221.92,0.2]
[1759370720270,1.88544952,221.93,221.92,0.2]
[1759370720475,0.14216157,221.94,221.92,0.2]
[1759370720970,0.14216157,221.95,221.92,0.2]
[1759370721178,1.88544952,221.98,221.93,0.47]
[1759370721374,0.14216157,221.97,221.92,0.2]
[1759370721575,0.28432314,221.97,221.94,0.47]
[1759370722488,0.28432314,221.97,221.92,4.70604666]
[1759370722489,1.88544952,222.02,221.95,0.47]
[1759370722721,1.88544952,222.02,221.93,0.47]
[1759370722722,0.71,222.02,221.93,0.47]
[1759370722895,1.88544952,222.0,221.93,0.47]
[1759370723090,0.28432314,221.99,221.93,0.47]
[1759370723269,0.28432314,221.97,221.92,0.2]
[1759370723588,0.14216157,221.96,221.93,0.47]
[1759370723892,0.14216157,221.96,221.92,0.2]
[1759370724080,0.14216157,221.96,221.94,0.47]
[1759370724272,0.14216157,221.96,221.92,0.2]
[1759370724468,0.14216157,221.96,221.93,0.47]
[1759370724682,0.14216157,221.96,221.92,0.2]
[1759370725269,4.6475378,221.96,221.92,0.2]
[1759370725465,2.02761109,221.97,221.92,0.2]
[1759370725779,0.14216157,221.96,221.93,0.47]
[1759370725986,0.14216157,221.96,221.92,0.2]
[1759370726568,0.14216157,221.96,221.92,0.67]
[1759370727270,0.14216157,221.96,221.93,0.47]
[1759370727669,0.28432314,221.97,221.92,0.2]
[1759370727878,0.28432314,221.97,221.92,0.67]
[1759370728092,4.78945578,221.97,221.92,0.67]
[1759370728391,0.14216157,221.96,221.92,0.2]
[1759370729078,0.28432314,221.96,221.92,0.2]
[1759370729693,4.7896637,221.96,221.92,0.2]
[1759370730785,5.4696637,221.96,221.92,0.2]
[1759370730966,7.35511322,221.96,221.92,0.2]
[1759370731169,5.4696637,221.96,221.92,0.2]
[1759370731370,7.35511322,221.96,221.92,0.2]
[1759370732377,1.88544952,221.95,221.92,0.2]
[1759370732573,2.56544952,221.95,221.92,0.2]
[1759370732910,0.68,221.94,221.92,0.2]
[1759370733469,1.88544952,221.95,221.92,0.2]
[1759370733668,0.68,221.94,221.92,0.2]
[1759370733886,2.56544952,221.94,221.92,0.2]
[1759370734298,2.56544952,221.93,221.92,0.2]
[1759370734478,11.55647521,221.93,221.92,0.2]
[1759370734677,13.44192473,221.93,221.92,0.2]
[1759370734879,17.94785002,221.93,221.92,0.2]
[1759370736170,18.23217316,221.93,221.92,0.2]
[1759370737302,18.23217316,221.93,221.9,0.2]
[1759370737303,11.16079835,221.92,221.9,0.2]
[1759370737499,13.04624787,221.91,221.9,0.2]
[1759370737685,11.84079835,221.91,221.9,0.2]
[1759370737883,13.72624787,221.91,221.9,0.2]
[1759370738696,44.40079835,221.91,221.9,0.2]
[1759370738898,50.79257926,221.91,221.9,1e-08]
[1759370740799,50.83257926,221.91,221.9,1e-08]
[1759370742009,10.87647521,221.84,221.75,0.47]
[1759370742181,1.88544952,221.79,221.75,0.47]
[1759370742384,1.88544952,221.77,221.71,0.47]
[1759370742585,1.88544952,221.75,221.71,0.47]
[1759370742785,1.88544952,221.75,221.72,0.47]
[1759370742786,4.50978623,221.74,221.72,0.47]
[1759370743002,4.50978623,221.74,221.69,21.0]
[1759370743003,4.50978623,221.74,221.7,0.47]
[1759370743207,4.50978623,221.74,221.71,0.47]
[1759370743488,4.50978623,221.74,221.69,0.2]
[1759370743489,4.50978623,221.74,221.69,0.17]
[1759370743896,1.88544952,221.75,221.69,0.17]
[1759370744103,6.39508102,221.75,221.69,0.17]
[1759370744290,0.14216157,221.74,221.69,0.17]
[1759370744496,2.70761109,221.74,221.69,0.17]
[1759370744693,2.02761109,221.74,221.69,0.17]
[1759370744893,6.53740176,221.74,221.69,0.17]
[1759370745083,2.02761109,221.74,221.69,0.17]
[1759370745284,5.33203214,221.74,221.69,0.17]
[1759370745486,7.21748166,221.74,221.69,0.17]
[1759370745683,0.14216157,221.73,221.69,0.17]
[1759370747293,4.51019303,221.72,221.69,0.17]
[1759370747798,7.07564255,221.72,221.69,0.17]
[1759370748122,6.39564255,221.72,221.69,0.17]
[1759370748309,2.70761109,221.71,221.69,0.17]
[1759370748490,0.14216157,221.7,221.69,0.17]
[1759370748688,0.82216157,221.7,221.69,0.17]
[1759370748908,0.14216157,221.7,221.69,0.17]
[1759370749297,4.79492304,221.7,221.69,0.17]
[1759370749489,0.96432314,221.7,221.69,0.17]
[1759370751700,2.84977266,221.7,221.69,0.17]
[1759370752092,7.36037256,221.7,221.69,0.17]
[1759370754101,5.47492304,221.7,221.69,0.17]
[1759370754416,140.01525374,221.74,221.69,0.17]
[1759370754626,1.88544952,221.72,221.69,0.17]
[1759370754793,2.60544952,221.72,221.69,0.17]
[1759370755188,2.60544952,221.71,221.69,0.17]
[1759370755593,0.14216157,221.72,221.69,0.17]
[1759370756015,4.65237211,221.72,221.69,0.17]
[1759370756222,5.37237211,221.72,221.69,0.17]
[1759370756828,0.86216157,221.72,221.69,0.17]
[1759370757027,0.14216157,221.72,221.69,0.17]
[1759370757416,5.37238777,221.72,221.69,0.17]
[1759370757610,0.14216157,221.72,221.69,0.17]
[1759370757827,0.72,221.76,221.69,0.17]
[1759370758030,32.0718669,221.8,221.69,4.68077247]
[1759370758031,0.72,221.77,221.69,4.68077247]
[1759370758342,10.87647521,221.79,221.69,15.9577809]
[1759370758934,0.28432314,221.78,221.69,0.17]
[1759370759110,1.00432314,221.78,221.69,0.17]
[1759370759315,1.00432314,221.78,221.69,4.68080143]
[1759370759631,1.00432314,221.78,221.69,20.97]
[1759370760028,5.51329893,221.78,221.69,25.48079842]
[1759370760813,4.79329893,221.78,221.69,25.48079842]
[1759370761018,0.72,221.77,221.69,25.48079842]
[1759370761334,3.673204,221.77,221.69,0.17]
[1759370761514,0.72,221.76,221.69,0.17]
[1759370761826,0.72,221.76,221.69,4.68070734]
[1759370762737,3.673204,221.79,221.69,4.68070734]
[1759370763119,0.72,221.78,221.69,4.68070734]
[1759370763531,4.50876955,221.79,221.7,20.8]
[1759370764219,5.22876955,221.79,221.69,36.75771577]
[1759370764423,0.72,221.78,221.69,36.75771577]
[1759370764731,0.14216157,221.77,221.69,36.75771577]
[1759370764930,0.14216157,221.77,221.69,25.48070734]
[1759370766732,3.23752714,221.74,221.69,0.17]
[1759370767032,0.72,221.73,221.69,0.17]
[1759370767328,0.28432314,221.7,221.69,0.17]
[1759370767510,1.00432314,221.7,221.69,0.17]
[1759370768122,0.86216157,221.7,221.69,0.17]
[1759370768429,0.14216157,221.7,221.69,0.17]
[1759370769731,0.14216157,221.72,221.69,0.17]
[1759370769914,0.86216157,221.72,221.69,0.17]
[1759370770116,0.72,221.71,221.69,0.17]
[1759370770719,0.28432314,221.72,221.69,0.17]
[1759370770919,1.00432314,221.72,221.69,0.17]
[1759370771341,5.22958286,221.75,221.69,0.17]
[1759370771638,0.72,221.75,221.69,4.68078359]
[1759370772018,0.72,221.75,221.69,0.17]
[1759370772432,1.00432314,221.75,221.69,0.17]
[1759370772746,5.51391036,221.75,221.69,0.17]
[1759370773040,8.18279122,221.75,221.69,0.17]
[1759370773248,0.28432314,221.72,221.69,0.17]
[1759370773422,0.72,221.71,221.69,0.17]
[1759370773627,0.72,221.7,221.69,0.17]
[1759370774346,5.2305999,221.7,221.69,0.17]
[1759370775148,8.1838039,221.7,221.69,0.17]
[1759370776155,11.01863678,221.69,221.53,4.51388567]
[1759370776329,0.14216157,221.62,221.5,32.46]
[1759370776527,0.86216157,221.62,221.53,20.8]
[1759370776750,0.14216157,221.62,221.53,20.8]
[1759370776919,0.72,221.64,221.53,20.8]
[1759370777841,0.14216157,221.65,221.53,20.8]
[1759370778237,0.14216157,221.65,221.54,15.79850139]
[1759370779020,0.14216157,221.64,221.54,15.79850139]
[1759370779937,132.9,221.74,221.57,20.8]
[1759370780129,0.72,221.69,221.57,20.8]
[1759370780336,5.23100685,221.68,221.58,4.51304269]
[1759370780930,0.14216157,221.67,221.58,4.51304269]
[1759370781648,4.51141387,221.66,221.58,4.51304269]
[1759370782852,0.28432314,221.65,221.54,11.28464385]
[1759370783046,0.97432314,221.65,221.54,11.28464385]
[1759370783561,0.69,221.64,221.53,4.51388483]
[1759370783723,0.66,221.63,221.53,4.51388483]
[1759370784127,3.613204,221.62,221.52,32.46]
[1759370784332,0.80216157,221.61,221.51,32.46]
[1759370784856,4.51263537,221.6,221.52,4.51426507]
[1759370785663,0.80216157,221.61,221.52,4.51426507]
[1759370786072,0.66,221.65,221.52,4.51426507]
[1759370786554,0.66,221.64,221.52,15.79992776]
[1759370786962,4.51202454,221.63,221.52,15.79992776]
[1759370787333,4.51202454,221.63,221.52,4.51426507]
[1759370787334,0.94432314,221.62,221.52,4.51426507]
[1759370787558,0.94432314,221.62,221.52,36.97426507]
[1759370787783,0.66,221.61,221.52,32.46]
[1759370788557,0.28432314,221.62,221.52,32.46]
[1759370789040,0.14216157,221.62,221.53,15.79921455]
[1759370790029,0.66,221.65,221.53,15.79921455]
[1759370790030,5.1718038,221.65,221.53,15.79921455]
[1759370790255,0.28432314,221.64,221.53,15.79921455]
[1759370790458,0.66,221.66,221.53,15.79921455]
[1759370790757,0.66,221.65,221.53,15.79921455]
[1759370790958,18.7452899,221.63,221.51,4.51431543]
[1759370791142,18.7452899,221.63,221.51,37.01431543]
[1759370791143,0.94432314,221.62,221.51,37.01431543]
[1759370791335,0.66,221.61,221.51,37.01431543]
[1759370791659,0.66,221.6,221.51,32.5]
[1759370791874,0.28432314,221.62,221.51,32.5]
[1759370792175,0.66,221.62,221.51,32.5]
[1759370792468,0.66,221.61,221.51,32.5]
[1759370792637,0.66,221.61,221.51,32.52]
[1759370793041,4.51263537,221.6,221.52,4.51426507]
[1759370793459,4.5124372,221.61,221.52,4.51426507]
[1759370793758,4.79654276,221.63,221.52,4.51426507]
[1759370793970,16.73660412,221.63,221.52,4.51426507]
[1759370794169,0.66,221.62,221.52,4.51426507]
[1759370795160,5.17242478,221.62,221.52,4.51426507]
[1759370795353,0.66,221.62,221.52,15.79992776]
[1759370795555,5.17228089,221.62,221.52,15.79992776]
[1759370796574,5.17228089,221.62,221.52,4.51426507]
[1759370797149,16.45285123,221.62,221.51,37.03441536]
[1759370797856,8.12548489,221.62,221.51,37.03441536]
[1759370798057,5.17228089,221.62,221.51,48.32058754]
[1759370799463,15.79285123,221.62,221.51,32.52]
[1759370799653,0.66,221.61,221.51,37.03442708]
[1759370799855,4.51228089,221.62,221.51,37.03442708]
[1759370800668,4.51228089,221.62,221.51,48.32059926]
[1759370801181,3.75536557,221.63,221.51,48.32059926]
[1759370802566,4.51222813,221.62,221.51,48.32059926]
[1759370804380,4.51182097,221.64,221.51,48.32059926]
[1759370804992,4.51182097,221.64,221.51,60.2594309]
[1759370805304,16.45137339,221.64,221.54,20.8]
[1759370806098,0.66,221.63,221.54,20.8]
[1759370806482,4.51222813,221.62,221.54,25.31374933]
[1759370807309,4.51222813,221.62,221.55,32.42]
[1759370807512,16.45279847,221.62,221.55,32.42]
[1759370808489,5.17222813,221.62,221.55,32.42]
[1759370809198,4.51222813,221.62,221.55,36.93349291]
[1759370810404,0.66,221.63,221.55,36.93349291]
[1759370810405,5.17203156,221.63,221.55,36.93349291]
[1759370810992,8.12523556,221.63,221.55,32.42]
[1759370811397,0.66,221.62,221.55,32.42]
[1759370811594,16.45209292,221.63,221.55,32.42]
[1759370811873,19.40529692,221.63,221.55,32.42]
[1759370812073,8.12523556,221.63,221.55,36.93363687]
[1759370812852,0.66,221.7,221.55,48.21777137]
[1759370813107,0.66,221.69,221.58,20.8]
[1759370813274,2.953204,221.65,221.53,15.39033928]
[1759370813476,2.953204,221.63,221.54,32.42]
[1759370813695,2.953204,221.61,221.54,32.42]
[1759370813999,0.66,221.61,221.54,32.42]
[1759370814714,4.51263537,221.6,221.54,32.42]
[1759370815869,0.66,221.59,221.54,32.42]
[1759370816080,4.51263537,221.6,221.54,32.42]
[1759370816286,5.17263537,221.6,221.54,32.42]
[1759370817296,5.17263537,221.6,221.49,20.8]
[1759370817477,5.17263537,221.6,221.53,32.42]
[1759370819500,5.17263537,221.6,221.53,36.93405584]
[1759370819801,4.51263537,221.6,221.53,36.93405584]
[1759370820374,15.79422381,221.6,221.53,32.42]
[1759370820680,0.66,221.59,221.53,32.42]
[1759370820988,5.17243639,221.61,221.53,36.93403608]
[1759370821186,0.66,221.61,221.53,36.93403608]
[1759370821390,4.51197789,221.64,221.53,36.93403608]
[1759370821774,4.51197789,221.64,221.53,48.21918933]
[1759370821980,5.1717567,221.65,221.53,69.01918933]
[1759370822208,0.66,221.64,221.53,69.01918933]
[1759370822811,5.17188744,221.64,221.53,69.01918933]
[1759370823503,1.89284823,221.67,221.53,69.01918933]
[1759370823805,0.66,221.66,221.53,69.01918933]
[1759370824190,0.80216157,221.66,221.53,69.01918933]
[1759370824580,0.94432314,221.66,221.53,69.01918933]
[1759370825120,3.7000527,221.7,221.57,20.8]
[1759370825287,4.51039646,221.71,221.58,32.42]
[1759370825607,4.51039646,221.71,221.61,20.8]
[1759370825608,3.0400527,221.71,221.61,20.8]
[1759370825788,0.94432314,221.73,221.61,20.8]
[1759370825991,0.66,221.73,221.61,20.8]
[1759370826398,5.16945598,221.76,221.61,23.8385483]
[1759370826713,11.18288538,221.78,221.65,20.8]
[1759370826894,15.69187719,221.78,221.67,15.78923624]
[1759370827096,15.69187719,221.78,221.68,32.42]
[1759370827401,0.66,221.82,221.68,32.42]
[1759370827586,5.16827209,221.82,221.68,32.42]
[1759370827791,4.50755014,221.85,221.71,20.8]
[1759370828008,2.55284823,221.84,221.71,20.8]
[1759370828401,0.66,221.83,221.71,20.8]
[1759370828591,2.55284823,221.83,221.71,20.8]
[1759370828782,0.66,221.83,221.71,20.8]
[1759370828981,0.66,221.85,221.72,15.78567562]
[1759370829186,2.55284823,221.84,221.73,32.4]
[1759370829407,1.89284823,221.82,221.73,32.4]
[1759370829613,0.66,221.83,221.73,32.4]
[1759370829614,2.55284823,221.83,221.73,32.4]
[1759370829808,0.28432314,221.85,221.72,20.8]
[1759370829988,0.66,221.82,221.74,32.4]
[1759370830585,0.66,221.84,221.74,32.4]
[1759370830790,0.28432314,221.83,221.74,32.4]
[1759370831191,0.28432314,221.83,221.75,4.50958286]
[1759370831730,0.66,221.84,221.75,4.50958286]
[1759370831892,0.14216157,221.85,221.75,4.50958286]
[1759370832296,0.66,221.88,221.77,20.8]
[1759370832508,11.92589566,221.91,221.77,20.8]
[1759370832720,2.55284823,221.9,221.77,20.8]
[1759370832947,0.66,221.9,221.77,20.8]
[1759370833141,7.0593827,221.9,221.78,20.8]
[1759370833420,2.55284823,221.89,221.78,25.30892661]
[1759370833618,2.55284823,221.88,221.74,4.50964679]
[1759370833817,1.89284823,221.86,221.75,53.2]
[1759370834027,2.55284823,221.86,221.75,53.2]
[1759370834400,0.66,221.86,221.75,53.2]
[1759370835449,4.50755014,221.85,221.76,4.5093795]
[1759370836130,0.66,221.86,221.76,4.5093795]
[1759370836299,4.50711027,221.88,221.76,15.78282827]
[1759370836919,5.16669426,221.9,221.76,15.78282827]
[1759370837202,0.66,221.91,221.79,20.8]
[1759370837420,0.66,221.91,221.8,4.50856627]
[1759370837621,5.166447,221.91,221.81,32.4]
[1759370838726,5.166447,221.91,221.82,4.50815976]
[1759370839500,4.506447,221.91,221.81,32.4]
[1759370839704,0.66,221.9,221.82,32.38]
[1759370839919,2.55284823,221.9,221.82,32.38]
[1759370840110,1.89284823,221.89,221.82,32.38]
[1759370840526,2.55284823,221.9,221.82,32.38]
[1759370841305,4.50673757,221.89,221.82,32.38]
[1759370842924,4.50673757,221.89,221.82,36.88814955]
[1759370843921,4.50673757,221.89,221.82,32.38]
[1759370844125,5.19673757,221.89,221.82,32.38]
[1759370844320,0.1,221.92,221.82,32.38]
[1759370845143,4.60613647,221.92,221.82,36.88814663]
[1759370845436,0.1,221.92,221.82,57.68814663]
[1759370846137,0.1,221.92,221.82,68.95854605]
[1759370846321,4.60616174,221.92,221.82,68.95854605]
[1759370847118,4.60616174,221.92,221.82,57.68814663]
[1759370847724,0.69,221.91,221.83,32.38]
[1759370848335,0.69,221.9,221.83,32.38]
[1759370848633,1.89284823,221.88,221.75,11.27370588]
[1759370848831,2.58284823,221.88,221.79,20.8]
[1759370849037,0.69,221.88,221.79,20.8]
[1759370849235,1.89284823,221.89,221.79,20.8]
[1759370849420,0.69,221.9,221.79,20.8]
[1759370849616,15.87148257,221.92,221.79,20.8]
[1759370849937,4.60616174,221.92,221.8,15.77998195]
[1759370850234,4.60616174,221.92,221.81,32.38]
[1759370850533,0.1,221.92,221.84,20.8]
[1759370851538,0.1,221.92,221.85,10.87647521]
[1759370851711,0.1,221.92,221.87,4.50714382]
[1759370852314,0.1,221.92,221.9,20.8]
[1759370852518,0.1,221.92,221.91,32.38]
[1759370854414,0.1,221.92,221.91,36.88633139]
[1759370855813,0.1,221.92,221.91,47.7628066]
[1759370856124,0.1,221.98,221.95,20.8]
[1759370856337,0.1,221.98,221.96,32.36]
[1759370857338,0.1,221.98,221.95,20.8]
[1759370857550,0.1,221.98,221.97,32.36]
[1759370859331,0.1,221.98,221.97,36.8651133]
[1759370861628,0.1,221.98,221.97,32.36]
[1759370862238,0.1,221.98,221.97,36.8651133]
[1759370863725,0.1,221.98,221.97,32.36]
[1759370865045,0.79,221.98,221.97,32.36]
[1759370867128,5.29491035,221.98,221.91,4.50631081]
[1759370867449,0.69,221.97,221.92,32.36]
[1759370867648,0.69,221.96,221.93,32.36]
[1759370867822,0.69,221.95,221.94,32.36]
[1759370868027,5.19551926,221.95,221.94,32.36]
[1759370868251,5.19551926,221.95,221.89,20.8]
[1759370868252,5.19551926,221.95,221.87,4.50707687]
[1759370868432,0.69,221.94,221.88,32.36]
[1759370868627,0.69,221.94,221.89,32.36]
[1759370868838,0.69,221.93,221.9,32.34]
[1759370869036,4.50551926,221.95,221.85,4.50735441]
[1759370869037,0.69,221.92,221.85,4.50735441]
[1759370869251,0.69,221.92,221.86,32.34]
[1759370870255,0.69,221.92,221.86,36.84715791]
[1759370870458,5.19612928,221.92,221.86,36.84715791]
[1759370870953,0.69,221.96,221.86,36.84715791]
[1759370871456,0.69,221.95,221.86,36.84715791]
[1759370871650,0.69,221.94,221.86,36.84715791]
[1759370872233,0.69,221.94,221.86,48.11552534]
[1759370872558,0.69,221.96,221.86,48.11552534]
[1759370872741,0.69,221.95,221.86,48.11552534]
[1759370873155,0.69,221.95,221.86,36.84715791]
[1759370873956,0.69,221.95,221.89,20.8]
[1759370874258,0.69,221.95,221.91,4.50633139]
[1759370874669,5.17517345,221.97,221.91,4.50633139]
[1759370875378,0.67,221.97,221.91,4.50633139]
[1759370875569,0.1,221.98,221.94,20.8]
[1759370875765,0.1,221.98,221.95,32.34]
[1759370876456,0.77,221.98,221.95,32.34]
[1759370877369,0.67,221.97,221.96,32.34]
[1759370877939,0.67,221.97,221.9,20.8]
[1759370878146,0.67,221.96,221.91,32.34]
[1759370878643,0.67,221.95,221.91,32.34]
[1759370879446,15.86722508,221.98,221.91,32.34]
[1759370879447,0.67,221.94,221.91,32.34]
[1759370879760,0.67,221.94,221.92,32.34]
[1759370880350,0.67,221.93,221.84,10.87647521]
[1759370880564,5.1761574,221.92,221.87,20.8]
[1759370880867,0.67,221.91,221.85,32.34]
[1759370881372,0.67,221.9,221.86,32.34]
[1759370881548,0.67,221.9,221.87,32.34]
[1759370881864,1.89284823,221.93,221.87,32.34]
[1759370881865,7.06877776,221.93,221.87,32.34]
[1759370882076,0.67,221.96,221.87,32.34]
[1759370883266,0.67,221.96,221.87,36.84701781]
[1759370883578,8.1237991,221.95,221.87,32.34]
[1759370883877,2.94827984,221.92,221.87,32.34]
[1759370884181,2.94827984,221.9,221.87,32.34]